[Event "MPL-4 Indian Chess Tour 2022"]
[Site "Chess24"]
[Date "2022.09.27"]
[Round "5.8"]
[White "Iniyan, P."]
[Black "Ganguly, Surya Shekhar"]
[Result "0-1"]
[ECO "D28"]
[WhiteElo "2556"]
[BlackElo "2589"]
[Annotator "TA"]
[PlyCount "80"]
[EventDate "2022.09.29"]
[EventType "tourn (rapid)"]
[EventCountry "NET"]
[SourceTitle "playchess.com"]
[Source "ChessBase"]
[SourceQuality "1"]
[WhiteTeam "India"]
[BlackTeam "India"]
[WhiteTeamCountry "IND"]
[BlackTeamCountry "IND"]
[TimeControl "900+10"]

{[%evp 18,80,25,3,24,-106,0,6,16,27,27,-33,43,-35,-19,-25,-14,-144,-145,-153,-153,-150,-150,-153,-150,-154,-153,-145,-147,-148,-145,-141,-153,-161,-146,-166,-147,-293,-295,-314,-283,-327,-324,-309,-265,-320,-316,-324,-329,-329,-327,-325,-322,-8665,-8538,-6376,-6376,-1114,-5168,-4614,-1308,-29991,-29992,-29997,-29994]} 1. d4 {[%emt 0:00:00]} d5 {[%emt 0:00:00]} 2. c4 {[%emt 0:00:11]} dxc4 {[%emt 0:00:02]} 3. Nf3 {[%emt 0:00:05]} Nf6 {[%emt 0:00:01]} 4. e3 {[%emt 0:00:01]} e6 {[%emt 0:00:01]} 5. Bxc4 {[%emt 0:00:01]} c5 {[%emt 0:00:01]} 6. O-O {[%emt 0:00:01]} Nc6 {[%emt 0:00:01]} 7. Qe2 {[%emt 0:00:21]} a6 {[%emt 0:00:02]} 8. Rd1 {[%emt 0:00:11]} b5 {[%emt 0:00:04]} 9. Bb3 {[%emt 0:00:37]} Bb7 {[%emt 0:00:01]} 10. Nc3 {[%emt 0:01:06]} Be7 $1 {[%emt 0:00:02][%mdl 4] [#] is currently scoring better than 10...Qc7. D28: Queen's Gambit Accepted: Classical main line: 7 Qe2 with early ...Nc6.} 11. a4 $146 {[%emt 0:01:04]} (11. d5 $11 {keeps the balance.} exd5 12. Nxd5 Nxd5 13. Bxd5) ({Predecessor:} 11. dxc5 Qc7 12. e4 O-O 13. Bg5 Rad8 14. Rac1 Rxd1+ 15. Nxd1 Rd8 16. e5 Nd7 17. Bxe7 Nxe7 18. Bc2 Nxc5 19. Bxh7+ Kxh7 {0-1 (31) Popov,V (2532)-Inarkiev,E (2693) St Petersburg 2018}) 11... b4 {[%emt 0:00:32]} (11... Na5 $17 12. Bc2 (12. dxc5 Qc7 $17) 12... b4 13. dxc5 Qc7) 12. d5 $1 $11 {[%emt 0:00:04][%cal Bd4d5,Bd5e6,Be6f7][%mdl 32]} (12. dxc5 Qc7 13. Nb1 Na5 $17) 12... Na5 {[%emt 0:02:11] The position is equal.} 13. dxe6 {[%emt 0:00:16]} Qc8 {[%emt 0:00:10]} 14. exf7+ {[%emt 0:03:24]} Kf8 {[%emt 0:00:01]} 15. Ba2 {[%emt 0:00:27]} (15. Bc2 $1 $14) 15... bxc3 $15 {[%emt 0:00:03]} 16. bxc3 {[%emt 0:00:00][%cal Oe3e4]} Qg4 {[%emt 0:00:49] Hoping for ...c4.} 17. Ba3 {[%emt 0:00:49] Black keeps a firm grip on the game.} (17. Rb1 $11 {remains equal.}) 17... Bxf3 $17 {[%emt 0:01:12]} 18. Qxf3 {[%emt 0:00:04]} Qxf3 {[%emt 0:00:01] Chess con chili.} 19. gxf3 {[%emt 0:00:00]} c4 {[%emt 0:00:01]} 20. Bb4 {[%emt 0:00:01]} Nb3 {[%emt 0:00:10] Pair of Knights!} 21. Rab1 {[%emt 0:00:53]} Kxf7 {[%emt 0:01:01]} 22. Bxb3 {[%emt 0:00:13]} cxb3 {[%emt 0:00:00]} 23. Bxe7 {[%emt 0:00:00]} Kxe7 {[%emt 0:00:02]} 24. Rxb3 {[%emt 0:00:00]} Rab8 {[%emt 0:00:30] Against Rb7+} 25. Rb4 {[%emt 0:00:04]} a5 {[%emt 0:00:26]} 26. Rbd4 {[%emt 0:00:25]} Rhc8 {[%emt 0:00:09]} 27. e4 {[%emt 0:00:51]} (27. Rd6 $17) 27... Rxc3 $19 {[%emt 0:00:25]} 28. e5 {[%emt 0:00:01]} Nh5 {[%emt 0:00:01]} (28... Rxf3 29. exf6+ Kxf6 30. Rd6+ Kf7 31. Rd7+ Kg8 32. Rd8+ Rxd8 33. Rxd8+ Rf8 34. Rd5 $14) 29. Rd5 {[%emt 0:00:32]} Nf4 {[%emt 0:01:47]} ({Don't blunder} 29... Rxf3 $2 30. Rxa5 Nf4 31. Rf1) 30. Rxa5 {[%emt 0:00:03]} Rd3 {[%emt 0:00:02][%cal Rd3d1]} 31. Ra7+ {[%emt 0:00:09]} Ke6 {[%emt 0:01:50][%cal Rd3d1]} 32. Re1 {[%emt 0:00:02]} Rb2 {[%emt 0:01:19]} ({Don't go for} 32... Rxf3 $2 33. Rxg7 Nd3 34. Rd1 $17) 33. Rxg7 {[%emt 0:01:27] [#]} h5 {[%emt 0:00:12]} ({Weaker is} 33... Rxf3 34. Rxh7 Nh3+ 35. Kh1 $17) 34. Ra7 {[%emt 0:01:16]} Rxf3 {[%emt 0:00:24]} 35. Ra6+ $2 {[%emt 0:00:04] [#]} (35. Rf1) 35... Kf5 $1 {[%emt 0:00:13]} 36. Rf6+ {[%emt 0:00:28]} Kg4 {[%emt 0:00:21]} 37. Rf1 {[%emt 0:00:13]} Kh3 {[%emt 0:01:11]} (37... Ra2 $142 38. a5 Rxa5) 38. a5 {[%emt 0:00:33]} Rb8 {[%emt 0:00:10] ( -> ...Rg8+)} 39. Kh1 {[%emt 0:02:37] [#]} Rxf2 $3 {[%emt 0:00:10][%cal Rf2f1][%mdl 512]} 40. Rxf4 {[%emt 0:00:11]} (40. Re1 Re2) 40... Rxf4 {[%emt 0:00:01] Weighted Error Value: White=0.56/Black=0.05 (flawless)} 0-1

[Event "MPL-4 Indian Chess Tour 2022"]
[Site "Chess24"]
[Date "2022.09.27"]
[Round "6.1"]
[White "Raja Harshit"]
[Black "Ganguly, Surya Shekhar"]
[Result "1-0"]
[ECO "C70"]
[WhiteElo "2459"]
[BlackElo "2589"]
[Annotator "TA"]
[PlyCount "133"]
[EventDate "2022.09.29"]
[EventType "tourn (rapid)"]
[EventCountry "NET"]
[SourceTitle "playchess.com"]
[Source "ChessBase"]
[SourceQuality "1"]
[WhiteTeam "India"]
[BlackTeam "India"]
[WhiteTeamCountry "IND"]
[BlackTeamCountry "IND"]
[TimeControl "900+10"]

{[%evp 16,133,65,68,69,56,77,33,39,14,73,59,89,73,70,64,110,109,139,137,463,467,457,467,464,464,461,445,609,599,656,638,632,513,514,504,500,497,683,668,736,738,725,703,657,408,409,406,395,374,361,349,433,433,400,413,377,340,304,268,267,278,276,270,266,228,247,246,265,249,423,448,438,412,1211,1008,29956,29958,29958,29959,29959,29957,29959,29959,29963,29964,29964,29966,29953,29955,29967,29968,29972,29973,29973,29973,29973,29974,29974,29974,29975,29976,29976,29977,29977,29977,29983,29984,29988,29989,29990,29991,29991,29992,29993,29994,29994,29991,29991,29990]} 1. e4 {[%emt 0:00:00]} e5 {[%emt 0:00:00]} 2. Nf3 {[%emt 0:00:04]} Nc6 {[%emt 0:00:01]} 3. Bb5 {[%emt 0:00:01]} a6 {[%emt 0:00:01]} 4. Ba4 {[%emt 0:00:01]} b5 {[%emt 0:00:02]} 5. Bb3 {[%emt 0:00:02]} Na5 {[%emt 0:00:01]} 6. O-O {[%emt 0:00:06]} d6 {[%emt 0:00:01]} 7. d4 {[%emt 0:01:33]} Nxb3 {[%emt 0:00:03]} 8. axb3 {[%emt 0:00:21]} f6 {[%emt 0:00:01] 8...f6 is better than 8...exd4.} 9. c4 {[%emt 0:00:07][%cal Bc2c4,Bc4c5][%mdl 32]} b4 {[%emt 0:00:01] C70: Ruy Lopez: 3...a6 4 Ba4, Norwegian and Delayed Schliemann.} 10. Be3 {[%emt 0:00:36]} Ne7 {[%emt 0:00:17]} 11. Nbd2 {[%emt 0:00:58][%cal Bb1d2,Bd2c4,Bc4a5,Ba5c6][%mdl 32]} Ng6 {[%emt 0:00:07] White is slightly better.} 12. c5 {[%emt 0:00:34]} Be7 {[%emt 0:00:59] [#]} (12... exd4 $1 $11 {remains equal.} 13. Nxd4 dxc5) 13. Nc4 $146 {[%emt 0:00:33]} ({Predecessor:} 13. cxd6 cxd6 14. Nc4 Bb7 15. Nfd2 O-O 16. Na5 Qc7 17. Qc1 Qxc1 18. Rfxc1 exd4 19. Bxd4 {½-½ (25) Suetin,A-Goldenov,B Minsk 1955}) 13... Rb8 {[%emt 0:03:10]} 14. Qc2 {[%emt 0:01:06] White has more active pieces. The black rooks are badly placed.} O-O {[%emt 0:00:23]} 15. Na5 {[%emt 0:00:55] [#] Nc6 is the strong threat.} Bd7 {[%emt 0:00:56] Prevents Nc6.} (15... Qe8 $14 {might be stronger.}) 16. cxd6 $16 {[%emt 0:00:30]} cxd6 {[%emt 0:00:02]} 17. Nc6 {[%emt 0:00:04] Pair of Knights!} Rc8 {[%emt 0:00:38][%mdl 8192] A mistake that costs the game.} (17... Bxc6 $16 {is more resistant.} 18. Qxc6 Qe8 19. Qc4+ (19. Qxa6 Qf7 $16) (19. Rxa6 Qxc6 20. Rxc6 d5 $16) 19... Qf7 20. Rxa6 Rbc8 21. Qxf7+ (21. Qxb4 Rb8 $16) 21... Rxf7) 18. Qc4+ $18 {[%emt 0:00:22]} Kh8 {[%emt 0:00:10]} 19. Nxd8 {[%emt 0:00:02] [#] Threatens to win with Nf7+.} Rxc4 {[%emt 0:00:02]} 20. bxc4 {[%emt 0:00:01]} Rxd8 {[%emt 0:00:07]} 21. Rxa6 {[%emt 0:00:03]} f5 {[%emt 0:00:07]} 22. dxe5 {[%emt 0:00:42]} dxe5 {[%emt 0:00:20]} 23. Rd1 {[%emt 0:00:04]} fxe4 {[%emt 0:00:05]} 24. Bb6 {[%emt 0:00:22]} Rc8 {[%emt 0:00:18]} 25. Rxd7 {[%emt 0:00:16]} exf3 {[%emt 0:00:01]} 26. b3 {[%emt 0:00:31]} fxg2 {[%emt 0:00:01]} 27. Rda7 {[%emt 0:00:25]} Kg8 {[%emt 0:00:28]} 28. Ra8 {[%emt 0:00:24]} Rxa8 {[%emt 0:00:01]} 29. Rxa8+ {[%emt 0:00:00][%mdl 4096] Endgame KRB-KBN} Kf7 {[%emt 0:00:00]} 30. Kxg2 {[%emt 0:00:02]} e4 {[%emt 0:00:16]} 31. Rc8 {[%emt 0:01:18]} Ke6 {[%emt 0:00:56]} 32. Bd4 {[%emt 0:00:17]} Nh4+ {[%emt 0:00:05]} 33. Kf1 {[%emt 0:00:34]} Nf3 {[%emt 0:00:04]} 34. Bxg7 {[%emt 0:02:41]} Nd2+ {[%emt 0:00:01]} 35. Ke2 {[%emt 0:00:01]} Nxb3 {[%emt 0:00:00]} 36. Ke3 {[%emt 0:00:42]} Kf5 {[%emt 0:00:19]} 37. Bf8 {[%emt 0:00:41]} Bg5+ {[%emt 0:00:04]} 38. Ke2 {[%emt 0:00:01]} Nd4+ {[%emt 0:00:53]} 39. Kf1 {[%emt 0:00:25]} b3 {[%emt 0:00:26]} 40. Rb8 {[%emt 0:00:20]} Bf4 {[%emt 0:00:54]} 41. Rb7 {[%emt 0:00:06]} Bxh2 {[%emt 0:00:00]} 42. Bc5 {[%emt 0:00:29]} Nf3 {[%emt 0:03:03]} (42... Ke5 43. Rxh7 Bf4 44. Re7+ Ne6) 43. Be3 {[%emt 0:00:03]} Bf4 {[%emt 0:00:13]} 44. Rb5+ {[%emt 0:00:59]} Ne5 {[%emt 0:00:03]} (44... Be5 $142 45. Rxb3 Nh2+ 46. Ke2 h5) 45. Bd4 {[%emt 0:00:07] aiming for Bxe5.} h5 {[%emt 0:01:14]} 46. Bxe5 {[%emt 0:00:06] White mates.} Bxe5 {[%emt 0:00:00]} 47. Rxb3 {[%emt 0:00:01] KR-KB} h4 {[%emt 0:00:05]} 48. c5 {[%emt 0:00:22][%cal Bc4c5,Bc5c6][%mdl 32]} Ke6 {[%emt 0:00:05]} 49. c6 {[%emt 0:00:25]} Bc7 {[%emt 0:01:37]} 50. Kg2 {[%emt 0:00:56]} Kd6 {[%emt 0:00:05]} 51. Rb4 {[%emt 0:00:16]} Kd5 {[%emt 0:01:15]} 52. Kh3 {[%emt 0:00:01]} Bd8 {[%emt 0:00:10]} 53. Kg4 {[%emt 0:00:25]} Kxc6 {[%emt 0:01:48]} 54. Rxe4 {[%emt 0:00:03]} Kd5 {[%emt 0:00:01]} 55. Re8 {[%emt 0:00:04]} Bf6 {[%emt 0:00:09]} 56. f4 {[%emt 0:00:03]} Kd6 {[%emt 0:00:04]} 57. Kf5 {[%emt 0:00:11]} Bc3 {[%emt 0:00:19]} 58. Re3 {[%emt 0:00:41]} Bb2 {[%emt 0:00:52]} 59. Rh3 {[%emt 0:00:04]} Ke7 {[%emt 0:00:03]} 60. Rxh4 {[%emt 0:00:04]} Kf7 {[%emt 0:00:05]} 61. Rh7+ {[%emt 0:00:01]} Kf8 {[%emt 0:00:07]} 62. Rb7 {[%emt 0:00:00]} Bc3 {[%emt 0:00:02]} 63. Ke6 {[%emt 0:00:03]} Bd4 {[%emt 0:00:22]} 64. f5 {[%emt 0:00:00][%cal Bf4f5,Bf5f6,Bf6f7][%mdl 32]} Kg8 {[%emt 0:00:13]} 65. f6 {[%emt 0:00:07]} Bc5 {[%emt 0:00:01]} 66. Rb8+ {[%emt 0:00:09]} Kh7 {[%emt 0:00:03]} 67. f7 {[%emt 0:00:04] Weighted Error Value: White=0.17 (very precise) /Black=0.40} 1-0

[Event "MPL-4 Indian Chess Tour 2022"]
[Site "Chess24"]
[Date "2022.09.27"]
[Round "6.2"]
[White "Mendonca, Leon Luke"]
[Black "Iniyan, P."]
[Result "1-0"]
[ECO "E04"]
[WhiteElo "2558"]
[BlackElo "2556"]
[Annotator "TA"]
[PlyCount "75"]
[EventDate "2022.09.29"]
[EventType "tourn (rapid)"]
[EventCountry "NET"]
[SourceTitle "playchess.com"]
[Source "ChessBase"]
[SourceQuality "1"]
[WhiteTeam "India"]
[BlackTeam "India"]
[WhiteTeamCountry "IND"]
[BlackTeamCountry "IND"]
[TimeControl "900+10"]

{[%evp 16,75,10,6,0,0,16,-36,-30,-63,-58,-105,-20,-18,-10,-83,-74,-95,-78,-62,-35,-43,-68,-102,-93,-102,-93,-143,-133,-136,-140,-148,-139,-111,-67,-75,-45,-45,-45,-48,-48,-71,-69,-85,-85,-82,-53,-107,-81,-108,-61,-60,-54,-183,-190,-262,-262,-333,29997,29998,29998,29999]} 1. d4 {[%emt 0:00:00]} Nf6 {[%emt 0:00:00]} 2. c4 {[%emt 0:00:02]} e6 {[%emt 0:00:06]} 3. Nf3 {[%emt 0:00:02]} d5 {[%emt 0:00:02]} 4. g3 {[%emt 0:00:01]} dxc4 {[%emt 0:00:11]} 5. Bg2 {[%emt 0:00:02]} c6 {[%emt 0:00:03]} 6. O-O {[%emt 0:00:23]} b5 {[%emt 0:00:02]} 7. Ne5 {[%emt 0:01:26]} Bb7 {[%emt 0:00:02]} 8. Nc3 {[%emt 0:00:56]} Qb6 {[%emt 0:01:02]} 9. a4 {[%emt 0:01:14]} a5 {[%emt 0:00:03] has lost popularity (9...Be7). E04: Open Catalan: 5 Nf3.} (9... Be7 {seems wilder.} 10. b3 Nd5 11. Ne4 cxb3 12. a5 Qc7) 10. e4 {[%emt 0:01:02]} Nfd7 {[%emt 0:00:39] [#] aiming for ...Nxe5.} 11. Nxd7 {[%emt 0:01:34]} (11. Nxf7 $1 $11 Kxf7 12. d5 (12. Qg4 $2 Qxd4 13. Qf4+ Ke8 $19) 12... cxd5 13. exd5) 11... Nxd7 $15 {[%emt 0:00:00][%cal Bb8d7,Bd7e5,Be5d3][%mdl 32] Black is slightly better.} 12. Be3 {[%emt 0:00:00]} b4 $1 {[%emt 0:00:38] [#]} 13. Nb1 $146 {[%emt 0:02:48]} (13. d5 $15 Bc5 14. dxe6 fxe6 15. Qg4) ({Predecessor:} 13. Ne2 Qa6 14. d5 O-O-O 15. Rc1 Nc5 16. Nf4 cxd5 17. exd5 g5 18. Nd3 Bxd5 19. Bxc5 Bxg2 20. Bxf8 Bxf1 21. Qxf1 Rhxf8 {0-1 (51) Aditya,M (2438)-Droin,A (2289) Chess.com INT 2020}) 13... c5 {[%emt 0:00:04]} (13... Ba6 $1 $17 {Threatening ...Rd8.} 14. Re1 Rd8) 14. d5 $11 {[%emt 0:01:13]} Ba6 {[%emt 0:01:29] With the idea ...Be7.} 15. Re1 {[%emt 0:01:37]} (15. e5 $11 {remains equal.} Ra7 16. f4) 15... Ne5 $1 $17 {[%emt 0:00:05] Threatens to win with ...Nd3.} 16. Qc2 {[%emt 0:00:43]} Nd3 {[%emt 0:03:05]} 17. Nd2 {[%emt 0:01:33]} b3 $36 {[%emt 0:00:44][%mdl 2048] Black has some pressure.} 18. Qc3 {[%emt 0:00:46]} Qb4 {[%emt 0:00:02] Hoping for ...Qxc3.} 19. Red1 {[%emt 0:00:31]} Qxc3 {[%emt 0:00:27]} 20. bxc3 {[%emt 0:00:00]} Rd8 {[%emt 0:00:30]} 21. Bf1 {[%emt 0:00:41]} (21. Rab1 $142) 21... exd5 {[%emt 0:00:42] White must now prevent ...d4.} 22. Bxd3 {[%emt 0:00:02]} cxd3 {[%emt 0:00:08]} 23. Nxb3 {[%emt 0:00:03]} c4 {[%emt 0:00:55]} 24. Nxa5 {[%emt 0:00:13]} dxe4 {[%emt 0:00:01]} (24... d4 {with more complications.} 25. cxd4 c3 26. Nc6 c2) 25. Rdb1 {[%emt 0:00:08]} Be7 {[%emt 0:00:15]} 26. Nc6 {[%emt 0:00:50]} Ra8 {[%emt 0:00:01]} 27. Nxe7 {[%emt 0:00:59]} Kxe7 {[%emt 0:00:00]} 28. Bc5+ {[%emt 0:00:13]} Ke6 {[%emt 0:00:17]} 29. Rb6+ {[%emt 0:00:04]} Kf5 {[%emt 0:00:01]} 30. Kf1 {[%emt 0:00:41]} Rhd8 {[%emt 0:00:18]} 31. Ke1 {[%emt 0:00:14]} ({White should play} 31. a5 $15) 31... Rd5 {[%emt 0:00:05]} 32. Be3 {[%emt 0:00:09]} f6 {[%emt 0:00:36]} ({Better is} 32... Kg4 $17 33. Rc6 Rd7) 33. Kd2 $15 {[%emt 0:00:14][%cal Og3g4]} Ra5 {[%emt 0:00:02][%cal Oa6b5]} 34. Rc6 {[%emt 0:00:08]} (34. g4+ $15 Ke5 35. Rb4) 34... Bb5 $19 {[%emt 0:00:25]} 35. Rc5+ {[%emt 0:00:16] [#]} (35. Rc7 $142) 35... Kg4 $1 {[%emt 0:00:37]} 36. h3+ {[%emt 0:00:03]} Kf3 $4 {[%emt 0:00:04][%mdl 8192] [#]} (36... Kxh3 $19 37. Ra2 Kg2) 37. Rg1 $1 {[%emt 0:00:04][%cal Rc5f5]} ({Don't blunder} 37. Rf5+ $2 Kg2 38. Rc5 Rxa4 39. Rxa4 Bxa4 40. Rxc4 Kf3 $19) 37... Bxa4 {[%emt 0:01:10]} 38. g4 {[%emt 0:00:04] Weighted Error Value: White=0.28 (precise) /Black=0.26 (precise)} 1-0

[Event "MPL-4 Indian Chess Tour 2022"]
[Site "Chess24"]
[Date "2022.09.27"]
[Round "6.3"]
[White "Mohammad Nubairshah Shaikh"]
[Black "Aronyak Ghosh"]
[Result "1/2-1/2"]
[ECO "E11"]
[WhiteElo "2461"]
[BlackElo "2519"]
[Annotator "TA"]
[PlyCount "25"]
[EventDate "2022.09.29"]
[EventType "tourn (rapid)"]
[EventCountry "NET"]
[SourceTitle "playchess.com"]
[Source "ChessBase"]
[SourceQuality "1"]
[WhiteTeam "India"]
[BlackTeam "India"]
[WhiteTeamCountry "IND"]
[BlackTeamCountry "IND"]
[TimeControl "900+10"]

{[%evp 24,25,28,0]} 1. d4 {[%emt 0:00:00]} Nf6 {[%emt 0:00:00]} 2. c4 {[%emt 0:00:04]} e6 {[%emt 0:00:03]} 3. Nf3 {[%emt 0:00:03]} d5 {[%emt 0:00:02]} 4. g3 {[%emt 0:00:05]} Bb4+ {[%emt 0:00:20]} 5. Bd2 {[%emt 0:00:05]} Be7 {[%emt 0:00:01]} 6. Bg2 {[%emt 0:00:05]} O-O {[%emt 0:00:01]} 7. O-O {[%emt 0:00:04]} c6 {[%emt 0:00:02]} 8. Qc2 {[%emt 0:00:11]} Nbd7 {[%emt 0:00:02]} 9. Bf4 {[%emt 0:00:09] [#]} Nh5 $146 {[%emt 0:00:02]} ({Predecessor:} 9... b6 10. cxd5 cxd5 11. Rc1 Bb7 12. Bc7 Qe8 13. Qb3 Rc8 14. Na3 Ne4 15. Bf4 g5 16. Be3 h6 17. Rxc8 Qxc8 18. Rc1 Qb8 19. Nb5 a6 20. Nc3 Rc8 21. Nxe4 dxe4 {0-1 (57) Grandelius,N (2655)-Giri,A (2760) Chennai 2022}) 10. Bc1 {[%emt 0:00:08]} Nhf6 {[%emt 0:00:02]} 11. Bf4 {[%emt 0:00:14]} Nh5 {[%emt 0:00:49]} 12. Bc1 {[%emt 0:00:23]} Nhf6 {[%emt 0:00:03]} 13. Bf4 {[%emt 0:00:31]} 1/2-1/2

[Event "MPL-4 Indian Chess Tour 2022"]
[Site "Chess24"]
[Date "2022.09.27"]
[Round "6.4"]
[White "Narayanan.S.L"]
[Black "Bharath Subramaniyam H"]
[Result "1-0"]
[ECO "D02"]
[WhiteElo "2657"]
[BlackElo "2495"]
[Annotator "TA"]
[PlyCount "123"]
[EventDate "2022.09.29"]
[EventType "tourn (rapid)"]
[EventCountry "NET"]
[SourceTitle "playchess.com"]
[Source "ChessBase"]
[SourceQuality "1"]
[WhiteTeam "India"]
[BlackTeam "India"]
[WhiteTeamCountry "IND"]
[BlackTeamCountry "IND"]
[TimeControl "900+10"]

{[%evp 12,123,28,11,37,4,25,23,42,43,45,49,49,29,65,37,65,52,74,67,67,13,23,19,15,4,8,9,8,2,22,0,0,0,0,0,0,0,0,0,0,0,0,-17,-15,-91,-95,-98,-70,-108,0,0,0,0,0,0,0,0,47,50,47,23,147,0,0,0,0,0,184,184,184,186,192,192,192,192,192,192,243,188,348,348,320,320,333,333,430,388,388,254,5206,1435,1325,1306,1441,1068,912,818,1034,990,1372,1438,1893,676,29978,29975,29980,29981,29981,29982,29985,29986,29990,29991]} 1. Nf3 {[%emt 0:00:00]} d5 {[%emt 0:00:00]} 2. d4 {[%emt 0:00:02]} c6 {[%emt 0:00:35]} 3. Bf4 {[%emt 0:00:07]} Bf5 {[%emt 0:00:06]} 4. e3 {[%emt 0:00:07]} e6 {[%emt 0:00:12]} 5. c4 {[%emt 0:00:59]} Nf6 {[%emt 0:03:13]} 6. Nc3 {[%emt 0:00:04]} Bd6 {[%emt 0:01:24]} 7. Ne5 {[%emt 0:00:40]} O-O {[%emt 0:00:18] D02: 1 d4 d5 2 Nf3 sidelines, including 2...Nf6 3 g3 and 2...Nf6 3 Bf4.} 8. Be2 {[%emt 0:00:02]} Ne4 {[%emt 0:01:49] [#]} 9. O-O $146 {[%emt 0:00:29]} ({Predecessor:} 9. c5 Bc7 10. O-O Nxc3 11. bxc3 f6 12. Nd3 Bxf4 13. Nxf4 e5 14. Nd3 Re8 15. h3 {0-1 (74) Priyamvada,K (1686)-Srija,S (1832) New Delhi 2010}) 9... Nxc3 {[%emt 0:00:28] White has an edge.} 10. bxc3 {[%emt 0:00:02]} f6 {[%emt 0:00:35]} 11. Nf3 {[%emt 0:00:03]} Bxf4 {[%emt 0:00:15]} 12. exf4 {[%emt 0:00:00]} Qc7 {[%emt 0:00:03]} 13. g3 {[%emt 0:00:01]} Nd7 {[%emt 0:00:07][%cal Bb8d7,Bd7b6,Bb6c4][%mdl 32]} 14. Re1 {[%emt 0:00:02]} Rad8 {[%emt 0:00:54]} 15. Nh4 {[%emt 0:01:06]} Be4 {[%emt 0:02:06]} 16. Bd3 {[%emt 0:03:05]} (16. Bf1 $14) 16... Bxd3 $11 {[%emt 0:00:50]} 17. Qxd3 {[%emt 0:00:02]} Rfe8 {[%emt 0:00:26]} 18. Re2 {[%emt 0:00:29]} Nb6 {[%emt 0:01:31]} 19. c5 {[%emt 0:00:02]} Nc4 {[%emt 0:00:04]} 20. Rae1 {[%emt 0:00:01]} Qf7 {[%emt 0:00:16]} 21. Nf3 {[%emt 0:00:06]} b6 {[%emt 0:00:20]} 22. Nd2 {[%emt 0:00:16]} Nxd2 {[%emt 0:00:33]} 23. Qxd2 {[%emt 0:00:01]} bxc5 {[%emt 0:00:30]} 24. dxc5 {[%emt 0:00:02]} Rb8 {[%emt 0:00:09]} 25. c4 {[%emt 0:01:16]} Qd7 {[%emt 0:01:01]} 26. Qc3 {[%emt 0:00:23]} Kf7 {[%emt 0:00:13]} 27. g4 {[%emt 0:00:08]} e5 {[%emt 0:00:10]} 28. f5 {[%emt 0:02:46]} (28. Qg3 $11) 28... d4 $17 {[%emt 0:00:07]} 29. Qd3 {[%emt 0:00:01][%cal Of2f4]} Qe7 {[%emt 0:00:15]} 30. g5 {[%emt 0:00:13]} fxg5 {[%emt 0:00:42]} (30... Qxc5 $17 31. gxf6 gxf6) 31. Rxe5 $11 {[%emt 0:00:11]} Qxe5 {[%emt 0:00:02]} 32. Rxe5 {[%emt 0:00:01]} Rxe5 {[%emt 0:00:00]} 33. Qxd4 $17 {[%emt 0:00:00][%mdl 4096] Endgame KQ-KRR} Re7 {[%emt 0:00:47]} (33... Rb1+ 34. Kg2 Rbe1 35. Qd7+ Re7 36. Qxc6 $16) 34. Qd6 {[%emt 0:00:01]} Rc8 {[%emt 0:00:03]} (34... Rb1+ $11 {deserves consideration.} 35. Kg2 Rbe1) 35. Kg2 $14 {[%emt 0:00:01]} Rcc7 {[%emt 0:00:21]} 36. a4 {[%emt 0:00:06]} h6 {[%emt 0:00:20] [#]} (36... Kg8 $11) 37. a5 {[%emt 0:00:11] White is more active.} (37. Qg6+ $1 $16 Kg8 38. f6) 37... Kg8 $11 {[%emt 0:00:14]} 38. Kg3 {[%emt 0:00:09]} Red7 {[%emt 0:00:05]} 39. Qe6+ {[%emt 0:00:02]} Kh8 $2 {[%emt 0:00:06] White stays focused until the end.} (39... Rf7 $11 {and Black has nothing to worry.}) 40. Qe8+ $18 {[%emt 0:00:08]} Kh7 {[%emt 0:00:01] [#]} 41. Qg6+ {[%emt 0:00:00]} Kg8 {[%emt 0:00:04]} 42. f6 {[%emt 0:00:10]} Rf7 {[%emt 0:00:10]} 43. fxg7 {[%emt 0:00:02]} Rxg7 {[%emt 0:00:01]} 44. Qxh6 {[%emt 0:00:01]} g4 {[%emt 0:00:00]} (44... Rgf7 {was worth a try.} 45. a6 (45. Qxg5+ $2 Rg7 $19) 45... g4) 45. Qe6+ {[%emt 0:00:03]} Kf8 $2 {[%emt 0:00:13]} (45... Kh7 46. Qd6 a6) 46. a6 {[%emt 0:00:02]} Rgf7 {[%emt 0:00:38]} 47. Qd6+ {[%emt 0:00:14]} (47. Qxg4 Rg7 48. f3 Rxg4+ 49. Kxg4 Rf7 $19) ({Don't do} 47. Kxg4 Rxf2 48. Qd6+ Re7 $18) 47... Kg8 {[%emt 0:00:17]} 48. Kxg4 {[%emt 0:00:11]} Rcd7 {[%emt 0:00:07]} 49. Qxc6 {[%emt 0:01:00] Hoping for f4.} ({Don't play} 49. Qe6 Rde7 50. Qxc6 Rxf2 51. Qd5+ Rff7 $18) 49... Rd4+ {[%emt 0:00:03]} 50. Kg5 {[%emt 0:00:44] Threatens to win with Qe8+.} Rxc4 $2 {[%emt 0:00:02]} (50... Rdf4 51. Qg6+ Kh8 52. Qh6+ Kg8) 51. Qe8+ {[%emt 0:00:05]} (51. Qd5 $142 Rc2 52. c6) 51... Kg7 {[%emt 0:00:02]} 52. Qe5+ {[%emt 0:00:01]} Kg8 {[%emt 0:00:10]} 53. f4 {[%emt 0:00:48][%cal Bf2f4,Bf4f5,Bf5f6][%mdl 32] White threatens Kh6 and mate.} Rc2 {[%emt 0:00:22]} 54. Qd5 {[%emt 0:00:17]} Rg2+ {[%emt 0:00:15]} 55. Kh4 {[%emt 0:00:22]} Rxh2+ {[%emt 0:00:10]} 56. Kg3 {[%emt 0:00:01]} Rc2 {[%emt 0:00:17]} 57. c6 {[%emt 0:00:03]} (57. f5 $142 Rc3+ 58. Kg4) 57... Rc1 {[%emt 0:00:19]} 58. f5 {[%emt 0:00:19] White mates.} Kg7 {[%emt 0:00:14]} 59. Qe5+ {[%emt 0:00:10]} Kh7 {[%emt 0:00:08]} 60. f6 {[%emt 0:00:15]} Rg1+ {[%emt 0:00:01]} 61. Kf2 {[%emt 0:00:01]} Rg6 {[%emt 0:00:21]} 62. Qh5+ {[%emt 0:00:01] Weighted Error Value: White=0.34/Black=0.33} 1-0